lending/lending_fUSD_20240311
["ID","MTS","AMOUNT","RATE_DAILY","PERIOD"]
[318202093,1710115207591,893.69,9.967e-05,2]
[318202094,1710115207789,893.69,0.00012231,2]
[318202095,1710115210430,2876.86,0.00011877,2]
[318202096,1710115319102,250.0,0.00011907,2]
[318202097,1710115330955,155.12539217,0.00012223,2]
[318202098,1710115360317,156.29,0.00011961,2]
[318202099,1710115360521,156.29,0.00011994,2]
[318202100,1710115360748,156.29,0.00012026,2]
[318202101,1710115360982,156.29,0.00012059,2]
[318202102,1710115361214,156.29,0.00012092,2]
[318202103,1710115361476,156.29,0.00012125,2]
[318202104,1710115361663,156.29,0.00012157,2]
[318202105,1710115361888,156.29,0.0001219,2]
[318202106,1710115362091,156.29,0.00012223,2]
[318202107,1710115362302,156.29,0.00012256,2]
[318202108,1710115362523,156.29,0.00012289,2]
[318202109,1710115362722,156.29,0.00012321,2]
[318202110,1710115362950,156.29,0.00012354,2]
[318202111,1710115363158,156.29,0.00012387,2]
[318202112,1710115363367,156.29,0.0001242,2]
[318202113,1710115363701,156.29,0.00012453,2]
[318202114,1710115363831,156.29,0.00012485,2]
[318202115,1710115367498,2340.11297506,0.00012288,2]
[318202116,1710115390052,151.13,0.00011844,2]
[318202117,1710115398728,746.9,0.00018,30]
[318202119,1710115410006,23359.01,0.00011832,2]
[318202120,1710115552785,155.0,0.00012499,2]
[318202121,1710115557410,1234.02736645,0.00012499,2]
[318202122,1710115559298,643.26547924,0.00012499,2]
[318202123,1710115566023,4429.8657748,0.00012499,2]
[318202124,1710115577515,155.0,0.00012499,2]
[318202125,1710115578468,155.0,0.00012499,2]
[318202126,1710115582830,528.63528851,0.00012499,2]
[318202127,1710115583816,193.28476011,0.00012499,2]
[318202128,1710115585036,160.10134966,0.00012499,2]
[318202129,1710115596840,498.38907567,0.00012499,2]
[318202130,1710115603138,1052.02365969,0.00012499,2]
[318202131,1710115618269,426.65,0.00018,30]
[318202132,1710115627864,643.26547924,0.00012499,2]
[318202133,1710115671644,155.0,0.00012499,2]
[318202134,1710115681646,1052.02365969,0.00012499,2]
[318202135,1710115699136,1583.99881988,0.00012499,2]
[318202141,1710115708727,225294.0,0.00012236,2]
[318202142,1710115711969,1917.9,0.00011887,2]
[318202143,1710115727936,26158.8988,0.00012404,2]
[318202147,1710115749681,867.66,9.908e-05,2]
[318202148,1710115749870,867.66,0.00012171,2]
[318202149,1710115755979,250.0,0.00011825,2]
[318202150,1710115767220,1000.0,0.00011813,2]
[318202151,1710115819718,151.13,0.00011803,2]
[318202152,1710115825092,3359.41,0.00018,30]
[318202158,1710115831873,-1052.02365969,0.00012505,2]
[318202159,1710115831881,-365.76264684,0.00012506,2]
[318202160,1710115831894,-57.84338812,0.00012506,2]
[318202161,1710115831904,-28841.75408188,0.0001251,2]
[318202162,1710115831916,-1712.1632,0.0001251,2]
[318202163,1710115831943,-4413.31754159,0.0001251,2]
[318202164,1710115831952,-9914.73370886,0.00012511,2]
[318202165,1710115831964,-1099.63523633,0.00012511,2]
[318202166,1710115831989,-1616.38764229,0.00012511,2]
[318202167,1710115831998,-156.29,0.00012518,2]
[318202168,1710115832007,-156.29,0.00012551,2]
[318202169,1710115832017,-156.29,0.00012584,2]
[318202170,1710115832026,-155.0,0.00012609,2]
[318202171,1710115832035,-249.56439489,0.00012609,2]
[318202172,1710115832046,-605.65216782,0.00012609,2]
[318202173,1710115832055,-581.51256847,0.00012609,2]
[318202174,1710115832064,-183.21141465,0.00012609,2]
[318202175,1710115832074,-253.43667905,0.00012609,2]
[318202176,1710115832083,-207.20256402,0.00012609,2]
[318202177,1710115832092,-193.70138316,0.00012609,2]
[318202178,1710115832101,-167.96429,0.00012609,2]
[318202179,1710115832110,-503.27310462,0.00012609,2]
[318202180,1710115832120,-645.14360034,0.00012609,2]
[318202181,1710115832129,-155.0,0.00012609,2]
[318202182,1710115832139,-352.00000002,0.0001261,2]
[318202183,1710115832152,-2644.28097426,0.0001261,2]
[318202185,1710115832161,-341.30531912,0.0001261,2]
[318202187,1710115832171,-1805.82,0.0001261,2]
[318202188,1710115832180,-156.18906944,0.0001261,2]
[318202189,1710115832189,-691.59,0.0001261,2]
[318202190,1710115832198,-499.99,0.0001261,2]
[318202191,1710115832208,-20993.22,0.0001261,2]
[318202192,1710115832217,-150.99,0.0001261,2]
[318202193,1710115832227,-999.99,0.0001261,2]
[318202195,1710115832236,-499.99,0.0001261,2]
[318202197,1710115832245,-150.99,0.0001261,2]
[318202198,1710115832255,-349.52,0.00012611,2]
[318202199,1710115832265,-647.6,0.00012611,2]
[318202200,1710115832275,-9999.99,0.00012611,2]
[318202201,1710115832284,-1000.0,0.00012611,2]
[318202202,1710115832293,-1487.89757496,0.000127,2]
[318202204,1710115832303,-12630.75658746,0.0001271,2]
[318202206,1710115832312,-3408.69167121,0.00012761,2]
[318202208,1710115832321,-404.48645659,0.00012768,2]
[318202211,1710115832330,-153.41174082,0.00012793,2]
[318202214,1710115832340,-153.41174074,0.00012801,2]
[318202216,1710115832349,-153.41174074,0.0001281,2]
[318202218,1710115832358,-153.41174074,0.00012818,2]
[318202220,1710115832368,-1012.3,0.00012818,2]
[318202221,1710115832377,-153.41174074,0.00012826,2]
[318202222,1710115832387,-153.41174074,0.00012835,2]
[318202223,1710115832398,-153.41174074,0.00012843,2]
[318202224,1710115832407,-153.41174074,0.00012851,2]
[318202225,1710115832416,-315.51177258,0.00012853,2]
[318202226,1710115832426,-153.41174074,0.0001286,2]
[318202227,1710115832435,-4004.17,0.00012865,2]
[318202228,1710115832444,-605.82697186,0.00012866,2]
[318202229,1710115832455,-165.22072899,0.00012866,2]
[318202230,1710115832464,-718.76101266,0.00012866,2]
[318202231,1710115832474,-459.81767994,0.00012866,2]
[318202232,1710115832483,-548.52973446,0.00012866,2]
[318202233,1710115832493,-238.10531792,0.00012866,2]
[318202234,1710115832514,-298.72901512,0.00012866,2]
[318202235,1710115832525,-155.05453662,0.00012866,2]
[318202236,1710115832535,-231.1536087,0.00012866,2]
[318202237,1710115832545,-155.34437507,0.00012866,2]
[318202238,1710115832555,-155.29768641,0.00012866,2]
[318202239,1710115832565,-169.66546597,0.00012866,2]
[318202240,1710115832574,-390.69435024,0.00012866,2]
[318202241,1710115832584,-298.20021066,0.00012866,2]
[318202242,1710115832594,-2868.09523539,0.00012866,2]
[318202243,1710115832604,-165.65742647,0.00012866,2]
[318202244,1710115832614,-222.50852152,0.00012866,2]
[318202245,1710115832623,-184.32712896,0.00012866,2]
[318202246,1710115832634,-390.60510431,0.00012866,2]
[318202247,1710115832643,-155.00000036,0.00012866,2]
[318202248,1710115832656,-177.0900529,0.00012866,2]
[318202249,1710115832666,-204.18076606,0.00012866,2]
[318202250,1710115832676,-239.61850085,0.00012866,2]
[318202251,1710115832686,-231.85663662,0.00012866,2]
[318202252,1710115832697,-155.3694788,0.00012866,2]
[318202253,1710115832708,-232.89254773,0.00012866,2]
[318202254,1710115832719,-501.39118322,0.00012866,2]
[318202255,1710115832729,-163.44466925,0.00012867,2]
[318202256,1710115832740,-185.06456596,0.00012867,2]
[318202257,1710115832750,-155.0,0.00012867,2]
[318202258,1710115832760,-666.88668811,0.00012867,2]
[318202259,1710115832770,-153.41174074,0.00012868,2]
[318202260,1710115832780,-153.41174074,0.00012877,2]
[318202261,1710115832792,-153.41174074,0.00012885,2]
[318202262,1710115832802,-153.41174074,0.00012893,2]
[318202263,1710115832811,-9688.55142708,0.00012899,2]
[318202264,1710115832821,-173.33322205,0.00012899,2]
[318202265,1710115832830,-194.98958747,0.00012899,2]
[318202266,1710115832840,-153.41174074,0.00012902,2]
[318202267,1710115832849,-12630.75658746,0.00012909,2]
[318202268,1710115832859,-153.41174074,0.0001291,2]
[318202269,1710115832869,-153.41174074,0.00012918,2]
[318202270,1710115832879,-40155.77651141,0.00012926,2]
[318202271,1710115832899,-274786.74771461,0.00012926,2]
[318202272,1710115832911,-1646.03970974,0.00012926,2]
[318202273,1710115832953,-792.5901174,0.00012926,2]
[318202274,1710115832967,-5717.77486785,0.00012926,2]
[318202275,1710115832979,-5764.54577556,0.00012926,2]
[318202276,1710115832991,-3888.23659935,0.00012926,2]
[318202277,1710115834345,155.78,0.00012008,2]
[318202278,1710115837718,-155.78,0.00012634,2]
[318202279,1710115837728,-32540.09087364,0.00012926,2]
[318202280,1710115837741,-7591.99746669,0.00012926,2]
[318202281,1710115837753,-1780.4464814,0.00012926,2]
[318202282,1710115837782,-9675.16620798,0.00012926,2]
[318202288,1710115838361,-18234.00126788,0.00012926,2]
[318202289,1710115838373,-497.03,0.00012926,2]
[318202290,1710115838384,-1086.93189934,0.00012926,2]
[318202291,1710115838395,-2979.02218623,0.00012926,2]
[318202292,1710115838413,-1228.83454852,0.00012926,2]
[318202293,1710115838425,-2837.128936,0.00012926,2]
[318202294,1710115838436,-2098.6700005,0.00012926,2]
[318202295,1710115838448,-1505.45526,0.00012926,2]
[318202296,1710115838467,-11577.00951343,0.00012926,2]
[318202297,1710115838479,-643.9353,0.00012926,2]
[318202298,1710115838491,-594881.7010594,0.00012926,2]
[318202299,1710115838500,-153.41174074,0.00012927,2]
[318202300,1710115838509,-153.41174074,0.00012935,2]
[318202301,1710115838519,-799.33,0.00012938,2]
[318202302,1710115838528,-592.63873662,0.00012956,2]
[318202303,1710115838537,-6006.80570235,0.00012956,2]
[318202304,1710115838547,-19442.0,0.00012986,2]
[318202305,1710115838557,-75972.0,0.00012986,2]
[318202306,1710115838567,-7652.0,0.00012986,2]
[318202307,1710115838577,-605.82697186,0.0001299,2]
[318202308,1710115838587,-605.82697186,0.0001299,2]
[318202309,1710115838597,-155.0,0.00012997,2]
[318202310,1710115838606,-188.64858971,0.00012997,2]
[318202311,1710115838616,-188.60231734,0.00012997,2]
[318202312,1710115838625,-272.60263945,0.00012997,2]
[318202313,1710115838634,-161.60626825,0.00012997,2]
[318202314,1710115838643,-866.82610746,0.00012997,2]
[318202315,1710115838655,-408.48479098,0.00012997,2]
[318202316,1710115838664,-265.04645795,0.00012997,2]
[318202317,1710115838674,-155.49528527,0.00012997,2]
[318202318,1710115838683,-200.0610409,0.00012997,2]
[318202319,1710115838698,-155.30769382,0.00012997,2]
[318202320,1710115838707,-162.3918919,0.00012997,2]
[318202321,1710115838717,-155.47213853,0.00012997,2]
[318202322,1710115838726,-184.28532024,0.00012997,2]
[318202323,1710115838736,-534.45401795,0.00012997,2]
[318202324,1710115838745,-1592.82940705,0.00012997,2]
[318202325,1710115838755,-1918.81676619,0.00012998,2]
[318202326,1710115838764,-5568.57823211,0.00012998,2]
[318202327,1710115838774,-1691.74192625,0.00012998,2]
[318202328,1710115838784,-712.04723481,0.00012999,2]
[318202329,1710115838793,-155.0,0.00012999,2]
[318202330,1710115838803,-1392.92389923,0.00012999,2]
[318202331,1710115838812,-742.36608116,0.00012999,2]
[318202332,1710115838821,-221.08612935,0.00012999,2]
[318202333,1710115838830,-372.18809735,0.00012999,3]
[318202334,1710115838840,-70908.89,0.00012999,2]
[318202335,1710115838849,-2988777.53824014,0.00013,2]
[318202336,1710115838858,-12630.75658746,0.00013108,2]
[318202337,1710115838868,-404.48645657,0.00013251,2]
[318202338,1710115838877,-1000.0,0.00013289,2]
[318202339,1710115838886,-4742.33706492,0.00013298,2]
[318202340,1710115838895,-12630.75658746,0.00013307,2]
[318202341,1710115838905,-150.0,0.00013315,2]
[318202342,1710115838913,-150.0,0.00013315,2]
[318202343,1710115838923,-150.0,0.00013315,2]
[318202344,1710115838931,-150.0,0.00013315,2]
[318202345,1710115838940,-150.0,0.00013315,2]
[318202346,1710115838949,-150.0,0.00013315,2]
[318202347,1710115838958,-150.0,0.00013315,2]
[318202348,1710115838967,-799.33,0.00013396,2]
[318202349,1710115838976,-12630.75658746,0.00013506,2]
[318202350,1710115838985,-500.0,0.0001352,2]
[318202351,1710115838994,-500.0,0.0001352,2]
[318202352,1710115839003,-150.0,0.00013562,2]
[318202353,1710115839012,-169.41,0.00013574,2]
[318202354,1710115839021,-580.89,0.00013699,2]
[318202355,1710115839030,-759.55,0.00013699,2]
[318202356,1710115839039,-3048.55,0.00013699,2]
[318202357,1710115839048,-197.22,0.00013699,2]
[318202358,1710115839058,-163.47,0.00013699,2]
[318202359,1710115839067,-500.0,0.00013699,2]
[318202360,1710115839076,-12630.75658746,0.00013705,2]
[318202361,1710115839087,-404.48645657,0.00013734,2]
[318202362,1710115839096,-580.89,0.00013756,2]
[318202363,1710115839105,-759.55,0.00013756,2]
[318202364,1710115839115,-173.33322205,0.000138,2]
[318202365,1710115839124,-194.98958747,0.000138,2]
[318202366,1710115839133,-150.0,0.00013808,2]
[318202367,1710115839142,-580.89,0.00013814,2]
[318202368,1710115839152,-759.55,0.00013814,2]
[318202369,1710115839163,-592.63873661,0.00013828,2]
[318202370,1710115839172,-6006.80570234,0.00013828,2]
[318202371,1710115839182,-799.33,0.00013853,2]
[318202372,1710115839191,-192338.984995,0.00013861,7]
[318202373,1710115839201,-183560.829974,0.00013861,7]
[318202374,1710115839210,-173.51713105,0.00013861,7]
[318202375,1710115839359,-580.89,0.00013872,2]
[318202376,1710115839370,-759.55,0.00013872,2]
[318202377,1710115839379,-12630.75658746,0.00013904,2]
[318202378,1710115839389,-580.89,0.00013929,2]
[318202379,1710115839399,-759.55,0.00013929,2]
[318202380,1710115839415,-580.89,0.00013987,2]
[318202381,1710115839425,-759.55,0.00013987,2]
[318202382,1710115839436,-11316.38014325,0.00014,2]
[318202383,1710115839446,-580.89,0.00014045,2]
[318202384,1710115839456,-759.55,0.00014045,2]
[318202385,1710115839466,-150.0,0.00014055,2]
[318202386,1710115839475,-150.0,0.00014055,2]
[318202387,1710115839485,-889.81,0.00014091,2]
[318202388,1710115839495,-580.89,0.00014102,2]
[318202389,1710115839505,-759.55,0.00014102,2]
[318202390,1710115839514,-12630.75658746,0.00014103,2]
[318202391,1710115839524,-580.89,0.0001416,2]
[318202392,1710115839534,-759.55,0.0001416,2]
[318202393,1710115839544,-815.9,0.00014205,2]
[318202394,1710115839554,-921.4,0.00014205,2]
[318202395,1710115839564,-921.4,0.00014205,2]
[318202396,1710115839574,-404.48645657,0.00014217,2]
[318202397,1710115839583,-580.89,0.00014218,2]
[318202398,1710115839593,-759.55,0.00014218,2]
[318202399,1710115839602,-815.24,0.00014219,2]
[318202400,1710115839612,-4000.0,0.00014247,2]
[318202401,1710115839621,-2170.0,0.00014247,2]
[318202402,1710115839632,-580.89,0.00014275,2]
[318202403,1710115839641,-759.55,0.00014275,2]
[318202404,1710115839654,-150.0,0.00014301,2]
[318202405,1710115839663,-12630.75658746,0.00014302,2]
[318202406,1710115839673,-799.33,0.00014311,2]
[318202407,1710115839683,-752950.40672822,0.0001432,2]
[318202408,1710115839692,-580.89,0.00014333,2]
[318202409,1710115839703,-759.55,0.00014333,2]
[318202410,1710115839715,-264.0,0.00014355,2]
[318202411,1710115839725,-1041.0,0.00014355,2]
[318202412,1710115839734,-266.0,0.00014355,2]
[318202413,1710115839744,-580.89,0.00014391,2]
[318202414,1710115839754,-759.55,0.00014391,2]
[318202415,1710115839763,-155.0,0.000144,2]
[318202416,1710115839773,-260.61961039,0.00014412,5]
[318202417,1710115839783,-867.66,0.00014435,2]
[318202418,1710115839792,-580.89,0.00014448,2]
[318202419,1710115839801,-759.55,0.00014448,2]
[318202420,1710115839810,-2004.03635357,0.000145,2]
[318202421,1710115839819,-12630.75658746,0.00014501,2]
[318202422,1710115839828,-580.89,0.00014506,2]
[318202423,1710115839837,-759.55,0.00014506,2]
[318202424,1710115839846,-500.0,0.0001452,2]
[318202425,1710115839855,-500.0,0.0001452,2]
[318202426,1710115839865,-500.0,0.0001452,2]
[318202427,1710115839875,-500.0,0.0001452,2]
[318202428,1710115839885,-500.0,0.0001452,2]
[318202429,1710115839895,-516.95,0.0001452,2]
[318202430,1710115839906,-500.0,0.0001452,2]
[318202431,1710115839916,-500.0,0.0001452,2]
[318202432,1710115839925,-500.0,0.0001452,2]
[318202433,1710115839935,-500.0,0.0001452,2]
[318202434,1710115839945,-500.0,0.0001452,2]
[318202435,1710115839954,-500.0,0.0001452,2]
[318202436,1710115839963,-603.82,0.0001452,2]
[318202437,1710115839973,-500.0,0.0001452,2]
[318202438,1710115839982,-500.0,0.0001452,2]
[318202439,1710115839991,-500.0,0.0001452,2]
[318202440,1710115840000,-517.21001931,0.0001452,2]
[318202441,1710115840010,-500.0,0.0001452,2]
[318202442,1710115840019,-509.01588549,0.0001452,2]
[318202443,1710115840028,-500.0,0.0001452,2]
[318202444,1710115840037,-500.0,0.0001452,2]
[318202445,1710115840046,-500.0,0.0001452,2]
[318202446,1710115840055,-500.0,0.0001452,2]
[318202447,1710115840064,-500.0,0.0001452,2]
[318202448,1710115840074,-500.0,0.0001452,2]
[318202449,1710115840084,-500.0,0.0001452,2]
[318202450,1710115840093,-500.0,0.0001452,2]
[318202451,1710115840103,-564.61776053,0.0001452,2]
[318202452,1710115840113,-500.0,0.0001452,2]
[318202453,1710115840122,-500.0,0.0001452,2]
[318202454,1710115840132,-500.0,0.0001452,2]
[318202455,1710115840141,-500.0,0.0001452,2]
[318202456,1710115840150,-510.31314478,0.0001452,2]
[318202457,1710115840164,-500.0,0.0001452,2]
[318202458,1710115840173,-500.0,0.0001452,2]
[318202459,1710115840183,-500.0,0.0001452,2]
[318202460,1710115840193,-500.0,0.0001452,2]
[318202461,1710115840202,-500.0,0.0001452,2]
[318202462,1710115840211,-500.0,0.0001452,2]
[318202464,1710115840221,-500.0,0.0001452,2]
[318202465,1710115840231,-500.0,0.0001452,2]
[318202466,1710115840240,-500.0,0.0001452,2]
[318202467,1710115840250,-500.0,0.0001452,2]
[318202468,1710115840259,-500.0,0.0001452,2]
[318202469,1710115840269,-500.0,0.0001452,2]
[318202470,1710115840278,-500.0,0.0001452,2]
[318202471,1710115840287,-500.0,0.0001452,2]
[318202472,1710115840297,-500.0,0.0001452,2]
[318202473,1710115840306,-500.0,0.0001452,2]
[318202474,1710115840315,-500.0,0.0001452,2]
[318202475,1710115840325,-500.0,0.0001452,2]
[318202476,1710115840334,-407.46953258,0.0001452,2]
[318202477,1710115840344,-500.0,0.0001452,2]
[318202478,1710115840354,-500.0,0.0001452,2]
[318202479,1710115840363,-500.0,0.0001452,2]
[318202480,1710115840373,-500.0,0.0001452,2]
[318202481,1710115840383,-500.0,0.0001452,2]
[318202482,1710115840393,-623.9375829,0.0001452,2]
[318202483,1710115840404,-500.0,0.0001452,2]
[318202484,1710115840415,-500.0,0.0001452,2]
[318202485,1710115840425,-545.0015744,0.0001452,2]
[318202486,1710115840435,-500.0,0.0001452,2]
[318202487,1710115840445,-500.0,0.0001452,2]
[318202488,1710115840455,-500.0,0.0001452,2]
[318202489,1710115840464,-500.0,0.0001452,2]
[318202490,1710115840474,-500.0,0.0001452,2]
[318202491,1710115840483,-500.0,0.0001452,2]
[318202492,1710115840492,-500.0,0.0001452,2]
[318202493,1710115840501,-500.0,0.0001452,2]
[318202494,1710115840511,-500.0,0.0001452,2]
[318202495,1710115840520,-500.0,0.0001452,2]
[318202496,1710115840530,-500.0,0.0001452,2]
[318202497,1710115840540,-387.17518116,0.0001452,2]
[318202498,1710115840550,-500.0,0.0001452,2]
[318202499,1710115840559,-500.0,0.0001452,2]
[318202500,1710115840568,-500.0,0.0001452,2]
[318202501,1710115840579,-500.0,0.0001452,2]
[318202502,1710115840588,-500.0,0.0001452,2]
[318202503,1710115840598,-500.0,0.0001452,2]
[318202504,1710115840608,-500.0,0.0001452,2]
[318202505,1710115840618,-500.0,0.0001452,2]
[318202506,1710115840628,-500.0,0.0001452,2]
[318202507,1710115840638,-500.0,0.0001452,2]
[318202508,1710115840647,-500.0,0.0001452,2]
[318202509,1710115840661,-291.45628199,0.0001452,2]
[318202510,1710115840671,-500.0,0.0001452,2]
[318202511,1710115840681,-500.0,0.0001452,2]
[318202512,1710115840691,-500.0,0.0001452,2]
[318202513,1710115840701,-500.0,0.0001452,2]
[318202514,1710115840714,-500.0,0.0001452,2]
[318202515,1710115840723,-500.0,0.0001452,2]
[318202516,1710115840732,-500.0,0.0001452,2]
[318202517,1710115840742,-500.0,0.0001452,2]
[318202518,1710115840751,-500.0,0.0001452,2]
[318202519,1710115840760,-500.0,0.0001452,2]
[318202520,1710115840770,-500.0,0.0001452,2]
[318202521,1710115840780,-500.0,0.0001452,2]
[318202522,1710115840790,-153.44254427,0.0001452,2]
[318202523,1710115840800,-500.0,0.0001452,2]
[318202524,1710115840809,-500.0,0.0001452,2]
[318202525,1710115840819,-500.0,0.0001452,2]
[318202526,1710115840828,-500.0,0.0001452,2]
[318202527,1710115840838,-500.0,0.0001452,2]
[318202528,1710115840847,-500.0,0.0001452,2]
[318202529,1710115840966,-500.0,0.0001452,2]
[318202530,1710115840977,-480.02,0.0001452,2]
[318202531,1710115840987,-500.0,0.0001452,2]
[318202532,1710115840997,-500.0,0.0001452,2]
[318202533,1710115841008,-500.0,0.0001452,2]
[318202534,1710115841018,-500.0,0.0001452,2]
[318202535,1710115841027,-500.0,0.0001452,2]
[318202536,1710115841037,-500.0,0.0001452,2]
[318202537,1710115841047,-500.0,0.0001452,2]
[318202538,1710115841057,-500.0,0.0001452,2]
[318202539,1710115841067,-500.0,0.0001452,2]
[318202540,1710115841077,-500.0,0.0001452,2]
[318202541,1710115841086,-500.0,0.0001452,2]
[318202542,1710115841096,-500.0,0.0001452,2]
[318202543,1710115841106,-500.0,0.0001452,2]
[318202544,1710115841115,-500.0,0.0001452,2]
[318202545,1710115841125,-500.0,0.0001452,2]
[318202546,1710115841134,-500.0,0.0001452,2]
[318202547,1710115841143,-500.0,0.0001452,2]
[318202548,1710115841153,-500.0,0.0001452,2]
[318202549,1710115841165,-500.0,0.0001452,2]
[318202550,1710115841174,-500.0,0.0001452,2]
[318202551,1710115841183,-500.0,0.0001452,2]
[318202552,1710115841193,-500.0,0.0001452,2]
[318202553,1710115841203,-500.0,0.0001452,2]
[318202554,1710115841212,-500.0,0.0001452,2]
[318202555,1710115841221,-500.0,0.0001452,2]
[318202556,1710115841231,-500.0,0.0001452,2]
[318202557,1710115841240,-500.0,0.0001452,2]
[318202558,1710115841250,-500.0,0.0001452,2]
[318202559,1710115841260,-500.0,0.0001452,2]
[318202560,1710115841269,-500.0,0.0001452,2]
[318202561,1710115841279,-500.0,0.0001452,2]
[318202562,1710115841289,-500.0,0.0001452,2]
[318202563,1710115841299,-500.0,0.0001452,2]
[318202564,1710115841309,-500.0,0.0001452,2]
[318202565,1710115841320,-506.36982636,0.0001452,2]
[318202566,1710115841331,-500.0,0.0001452,2]
[318202567,1710115841340,-500.0,0.0001452,2]
[318202568,1710115841350,-536.43305778,0.0001452,2]
[318202569,1710115841360,-500.0,0.0001452,2]
[318202570,1710115841370,-500.0,0.0001452,2]
[318202571,1710115841380,-500.0,0.0001452,2]
[318202572,1710115841390,-500.0,0.0001452,2]
[318202573,1710115841400,-500.0,0.0001452,2]
[318202574,1710115841417,-500.0,0.0001452,2]
[318202575,1710115841426,-500.0,0.0001452,2]
[318202576,1710115841435,-500.0,0.0001452,2]
[318202577,1710115841445,-500.0,0.0001452,2]
[318202578,1710115841455,-500.0,0.0001452,2]
[318202579,1710115841465,-500.0,0.0001452,2]
[318202580,1710115841474,-500.0,0.0001452,2]
[318202581,1710115841484,-500.0,0.0001452,2]
[318202582,1710115841494,-500.0,0.0001452,2]
[318202583,1710115841503,-500.0,0.0001452,2]
[318202584,1710115841513,-500.0,0.0001452,2]
[318202585,1710115841522,-500.0,0.0001452,2]
[318202586,1710115841531,-500.0,0.0001452,2]
[318202587,1710115841541,-500.0,0.0001452,2]
[318202588,1710115841550,-500.0,0.0001452,2]
[318202589,1710115841560,-502.3945445,0.0001452,2]
[318202590,1710115841570,-500.0,0.0001452,2]
[318202591,1710115841579,-500.0,0.0001452,2]
[318202592,1710115841589,-500.0,0.0001452,2]
[318202593,1710115841598,-500.0,0.0001452,2]
[318202594,1710115841607,-500.0,0.0001452,2]
[318202595,1710115841617,-500.0,0.0001452,2]
[318202596,1710115841627,-500.0,0.0001452,2]
[318202597,1710115841637,-500.0,0.0001452,2]
[318202598,1710115841646,-500.0,0.0001452,2]
[318202599,1710115841658,-500.0,0.0001452,2]
[318202600,1710115841676,-500.0,0.0001452,2]
[318202601,1710115841695,-500.0,0.0001452,2]
[318202602,1710115841716,-195.13218079,0.0001452,2]
[318202603,1710115841737,-502.30759202,0.0001452,2]
[318202604,1710115841754,-500.0,0.0001452,2]
[318202605,1710115841773,-500.0,0.0001452,2]
[318202606,1710115841792,-500.0,0.0001452,2]
[318202607,1710115841811,-500.0,0.0001452,2]
[318202608,1710115841830,-500.0,0.0001452,2]
[318202609,1710115841847,-514.02701539,0.0001452,2]
[318202610,1710115841866,-500.0,0.0001452,2]
[318202611,1710115841886,-500.0,0.0001452,2]
[318202612,1710115841899,-500.0,0.0001452,2]
[318202613,1710115841919,-500.0,0.0001452,2]
[318202614,1710115841936,-158.0580933,0.0001452,2]
[318202615,1710115841949,-500.0,0.0001452,2]
[318202616,1710115841965,-500.0,0.0001452,2]
[318202617,1710115841980,-500.0,0.0001452,2]
[318202618,1710115841997,-500.0,0.0001452,2]
[318202619,1710115842015,-500.0,0.0001452,2]
[318202620,1710115842030,-500.0,0.0001452,2]
[318202621,1710115842045,-500.0,0.0001452,2]
[318202622,1710115842060,-500.0,0.0001452,2]
[318202623,1710115842074,-500.0,0.0001452,2]
[318202624,1710115842089,-500.0,0.0001452,2]
[318202625,1710115842104,-500.0,0.0001452,2]
[318202626,1710115842118,-500.0,0.0001452,2]